fUST/lending_fUST_20250817
["ID","MTS","AMOUNT","RATE_DAILY","PERIOD"]
[379922812,1755441045931,-480.0,0.00019289,2]
[379922813,1755441045940,-906.33,0.00019289,2]
[379922814,1755441045950,-1473.49,0.00019289,2]
[379922815,1755441045959,-480.0,0.00019289,2]
[379922816,1755441045968,-750.28,0.00019289,2]
[379922817,1755441045977,-480.0,0.00019289,2]
[379922819,1755441045987,-1829.86,0.00019289,2]
[379922821,1755441045996,-480.0,0.00019289,2]
[379922823,1755441046006,-480.0,0.00019289,2]
[379922825,1755441046015,-480.0,0.00019289,2]
[379922827,1755441046024,-480.0,0.00019289,2]
[379922829,1755441046033,-536.94,0.0001929,2]
[379922830,1755441046042,-480.0,0.0001929,2]
[379922832,1755441046051,-480.0,0.0001929,2]
[379922834,1755441046060,-480.0,0.0001929,2]
[379922836,1755441046069,-578.02,0.0001929,2]
[379922837,1755441046079,-480.0,0.0001929,2]
[379922839,1755441046088,-480.0,0.0001929,2]
[379922842,1755441046098,-480.0,0.0001929,2]
[379922844,1755441046107,-480.0,0.0001929,2]
[379922846,1755441046119,-480.0,0.0001929,2]
[379922848,1755441046128,-480.0,0.0001929,2]
[379922850,1755441046138,-480.0,0.0001929,2]
[379922852,1755441046147,-480.0,0.0001929,2]
[379922854,1755441046157,-599.96,0.0001929,2]
[379922856,1755441046166,-480.0,0.0001929,2]
[379922858,1755441046177,-480.0,0.0001929,2]
[379922860,1755441046188,-480.0,0.0001929,2]
[379922862,1755441046198,-480.0,0.0001929,2]
[379922864,1755441046207,-4370.75,0.0001929,2]
[379922866,1755441046216,-1147.65,0.0001929,2]
[379922867,1755441046225,-534.13,0.0001929,2]
[379922869,1755441046234,-480.0,0.0001929,2]
[379922871,1755441046244,-821.17,0.0001929,2]
[379922874,1755441046255,-480.0,0.0001929,2]
[379922875,1755441046271,-480.0,0.0001929,2]
[379922877,1755441046289,-480.0,0.00019291,2]
[379922879,1755441046299,-480.0,0.00019291,2]
[379922881,1755441046310,-569.4,0.00019291,2]
[379922883,1755441046319,-480.0,0.00019291,2]
[379922885,1755441046328,-480.0,0.00019292,2]
[379922887,1755441046338,-480.0,0.00019292,2]
[379922890,1755441046348,-534.66,0.00019292,2]
[379922892,1755441046381,-480.0,0.00019292,2]
[379922893,1755441046398,-480.0,0.00019293,2]
[379922894,1755441046409,-610.01,0.00019293,2]
[379922896,1755441046421,-480.0,0.00019293,2]
[379922898,1755441046433,-1492.77,0.00019293,2]
[379922900,1755441046442,-1156.33,0.00019293,2]
[379922902,1755441046451,-480.0,0.00019293,2]
[379922904,1755441046461,-160.7855539,0.00019298,2]
[379922906,1755441046470,-151.0,0.00019329,2]
[379922908,1755441046479,-151.0,0.00019329,2]
[379922910,1755441046488,-151.0,0.00019329,2]
[379922912,1755441046497,-151.0,0.00019329,2]
[379922914,1755441046507,-151.0,0.00019329,2]
[379922916,1755441046516,-170.005422,0.00019329,2]
[379922918,1755441046525,-170.005422,0.00019329,2]
[379922920,1755441046534,-151.0,0.00019329,2]
[379922922,1755441046543,-151.0,0.00019329,2]
[379922923,1755441046552,-12734.63553516,0.00019329,2]
[379922942,1755441046742,-528.90102382,0.00018766,2]
[379922983,1755441047170,-2019.9551446,0.00018766,2]
[379922986,1755441047181,-481.76865026,0.00018766,2]
[379922988,1755441047193,-2139.52953205,0.00018766,2]
[379924683,1755441068395,480.0,0.00018296,2]
[379925462,1755441088924,480.0,0.00018296,2]
[379925463,1755441094921,150.0,0.000152,30]
[379925464,1755441095529,150.0,0.00015924,30]
[379925465,1755441096039,171.26,0.00016648,30]
[379925466,1755441096492,228.35,0.00017372,30]
[379925467,1755441096921,285.43,0.00018096,30]
[379925468,1755441097461,342.52,0.0001882,30]
[379925469,1755441122405,1834.69470246,0.00018365,2]
[379925470,1755441123180,300.0,0.00018369,2]
[379925471,1755441128353,480.0,0.00018296,2]
[379925472,1755441158824,476.08126571,0.00018369,2]
[379925473,1755441160528,500.0,0.00018369,2]
[379925474,1755441160561,500.0,0.00018369,2]
[379925475,1755441160607,332.8782852,0.00018369,2]
[379925476,1755441160640,500.0,0.00018369,2]
[379925477,1755441160670,500.0,0.00018369,2]
[379925478,1755441160703,500.0,0.00018369,2]
[379925479,1755441160732,500.0,0.00018369,2]
[379925480,1755441160915,626.94,0.00018369,2]
[379925481,1755441160967,500.0,0.00018369,2]
[379925482,1755441160998,500.0,0.00018369,2]
[379925483,1755441161063,264.14895072,0.00018369,2]
[379925484,1755441161118,500.0,0.00018369,2]
[379925485,1755441161146,500.0,0.00018369,2]
[379925486,1755441161179,213.47876431,0.00018369,2]
[379925487,1755441161207,355.32158017,0.00018369,2]
[379925488,1755441161239,500.0,0.00018369,2]
[379925489,1755441161268,500.0,0.00018369,2]
[379925490,1755441161303,500.0,0.00018369,2]
[379925491,1755441161332,500.0,0.00018369,2]
[379925492,1755441161361,500.0,0.00018369,2]
[379925493,1755441161395,500.0,0.00018369,2]
[379925494,1755441161429,500.0,0.00018369,2]
[379925495,1755441161459,500.0,0.00018369,2]
[379925496,1755441161489,500.0,0.00018369,2]
[379925497,1755441161519,500.0,0.00018369,2]
[379925498,1755441161554,505.64824891,0.00018369,2]
[379925499,1755441161586,500.0,0.00018369,2]
[379925500,1755441161616,500.0,0.00018369,2]
[379925501,1755441161646,500.0,0.00018369,2]
[379925502,1755441182493,300.0,0.00018369,2]
[379925503,1755441190492,2243.062551,0.00017574,2]
[379925504,1755441222644,3252.7384547,0.00018369,2]
[379925505,1755441223983,500.0,0.00018369,2]
[379925506,1755441224045,253.34879266,0.00018369,2]
[379925507,1755441224083,231.70523295,0.00018369,2]
[379925508,1755441228543,1025.72,0.00018296,2]
[379925509,1755441233926,204.39,0.0001836,3]
[379925511,1755441237651,480.0,0.00018369,2]
[379925512,1755441242902,1309.86,0.00018369,2]
[379925513,1755441244608,613.17,0.0001836,3]
[379925514,1755441250633,150.0,0.00015936,30]
[379925515,1755441252502,150.0,0.00016695,30]
[379925516,1755441253067,150.0,0.00017454,30]
[379925517,1755441253666,199.38,0.00018212,30]
[379925518,1755441253989,2166.49932504,0.00018365,2]
[379925519,1755441254300,249.23,0.00018971,30]
[379925520,1755441288535,817.26062441,0.00018367,2]
[379925521,1755441292667,500.394,0.00018367,2]
[379925522,1755441296280,670.26,0.0001836,3]
[379925523,1755441297765,4551.27,0.00028767,120]
[379925524,1755441300633,151.0,0.000176,2]
[379925525,1755441301080,151.0,0.000166,2]
[379925526,1755441301453,151.0,0.000157,2]
[379925527,1755441301808,151.0,0.000148,2]
[379925528,1755441302177,151.0,0.000138,2]
[379925529,1755441302892,300.0,0.00018369,2]
[379925530,1755441303594,460.0,0.00018369,2]
[379925531,1755441304256,300.0,0.00018369,2]
[379925533,1755441307055,335.13,0.0001836,3]
[379925534,1755441310520,650.79,0.00018369,2]
[379925535,1755441311919,1200.0,0.00018369,2]
[379925536,1755441317756,167.56,0.0001836,3]
[379925537,1755441323118,480.0,0.00018369,2]
[379925538,1755441324767,480.0,0.00018296,2]
[379925539,1755441328403,219.54,0.0001836,3]
[379925540,1755441332552,150.0,0.00015646,30]
[379925541,1755441333107,150.0,0.00016391,30]
[379925542,1755441333530,39.89,0.00017136,30]
[379925543,1755441333561,110.11,0.00017136,30]
[379925544,1755441334017,184.25,0.00017881,30]
[379925545,1755441335150,230.31,0.00018626,30]
[379925547,1755441339347,658.66,0.0001836,3]
[379925549,1755441346029,480.0,0.00018369,2]
[379925550,1755441351102,480.0,0.00018369,2]
[379925551,1755441352265,303.00986917,0.00018369,2]
[379925552,1755441352295,500.0,0.00018369,2]
[379925553,1755441352324,333.80300312,0.00018369,2]
[379925554,1755441352356,486.92735524,0.00018369,2]
[379925555,1755441363609,300.0,0.00018369,2]
[379925556,1755441364692,480.0,0.00018369,2]
[379925557,1755441366783,950.62,0.00018369,2]
[379925558,1755441367236,496.35688834,0.00018296,2]
[379925559,1755441385190,1325.15,0.00018369,2]
[379925560,1755441385711,400.0,0.00028767,120]
[379925561,1755441399843,480.0,0.00018369,2]
[379925562,1755441402701,480.0,0.00018369,2]
[379925563,1755441404545,1200.0,0.00018369,2]
[379925564,1755441406915,1021.96936364,0.00027676,120]
[379925565,1755441411009,1262.87727076,0.00018365,2]
[379925566,1755441412205,548.553886,0.00013699,2]
[379925567,1755441412248,1909.97,0.00018296,2]
[379925568,1755441413837,150.0,0.00015326,30]
[379925569,1755441414612,150.0,0.00016056,30]
[379925570,1755441415024,150.0,0.00016785,30]
[379925571,1755441415973,182.53,0.00017515,30]
[379925572,1755441416494,228.16,0.00018245,30]
[379925573,1755441416919,273.79,0.00018975,30]
[379925575,1755441418316,953.86,0.00018369,2]
[379925576,1755441422548,300.0,0.00018369,2]
[379925577,1755441423480,480.0,0.00018369,2]
[379925578,1755441434432,380.0,0.00018369,2]
[379925579,1755441436604,480.0,0.00018296,2]
[379925580,1755441448700,480.0,0.00018369,2]
[379925581,1755441454696,481.34962756,0.00018369,2]
[379925582,1755441456251,480.0,0.00018369,2]
[379925583,1755441461644,480.0,0.00018369,2]
[379925584,1755441463691,5209.94867743,0.0001827,2]
[379925585,1755441475886,1679.06,0.00018369,2]
[379925586,1755441476896,480.0,0.00018369,2]
[379925587,1755441478201,6302.7415768,0.00018367,2]
[379925588,1755441482333,300.0,0.00018369,2]
[379925589,1755441484152,480.0,0.00018369,2]
[379925590,1755441493349,480.0,0.00018369,2]
[379925591,1755441497314,480.0,0.00018369,2]
[379925592,1755441503539,480.0,0.00018369,2]
[379925593,1755441506820,486.85,0.00018369,2]
[379925594,1755441515277,480.0,0.00018369,2]
[379925595,1755441521594,480.0,0.00018369,2]
[379925596,1755441533081,480.0,0.00018369,2]
[379925597,1755441535016,1895.68690941,0.00018366,2]
[379925598,1755441539161,480.0,0.00018369,2]
[379925602,1755441543389,495.41,0.00018369,2]
[379925603,1755441544011,300.0,0.00018369,2]
[379925604,1755441544660,480.0,0.00018369,2]
[379925605,1755441546397,857.5,0.00018369,2]
[379925606,1755441561189,480.0,0.00018369,2]
[379925607,1755441566790,480.0,0.00018369,2]
[379925608,1755441569202,150.0,0.00015444,30]
[379925609,1755441569625,150.0,0.00016179,30]
[379925610,1755441570140,480.0,0.00018369,2]
[379925611,1755441570184,150.0,0.00016915,30]
[379925612,1755441570639,157.77,0.0001765,30]
[379925613,1755441571091,197.22,0.00018386,30]
[379925614,1755441578314,11000.0,0.000287,120]
[379925615,1755441579144,480.0,0.00018369,2]
[379925616,1755441582394,480.0,0.00018369,2]
[379925617,1755441588901,480.0,0.00018369,2]
[379925619,1755441594267,480.0,0.00018369,2]
[379925620,1755441598781,480.0,0.00018369,2]
[379925621,1755441602541,300.0,0.00018369,2]
[379925622,1755441602895,159.0,0.00018369,2]
[379925623,1755441611149,911.01,0.00018369,2]
[379925624,1755441612187,1200.0,0.00018369,2]
[379925625,1755441624493,480.0,0.00018369,2]
[379925626,1755441626393,480.0,0.00018369,2]
[379925627,1755441629801,1269.94,0.00018369,2]
[379925628,1755441638241,460.0,0.00018369,2]
[379925629,1755441640253,574.76957231,0.00018369,2]
[379925630,1755441642785,480.0,0.00018369,2]
[379925631,1755441644490,302.309406,0.00017467,2]
[379925632,1755441644805,480.0,0.00018369,2]
[379925633,1755441645353,480.0,0.00018369,2]
[379925634,1755441647053,480.0,0.00018369,2]
[379925635,1755441648432,502.97102169,0.0001837,2]
[379925636,1755441648456,4497.02897831,0.0001837,2]
[379925637,1755441658473,480.0,0.00018369,2]
[379925638,1755441659092,480.0,0.00018369,2]
[379925639,1755441663250,480.0,0.00018369,2]
[379925640,1755441664524,300.0,0.00018369,2]
[379925641,1755441665117,3762.97102169,0.0001837,2]
[379925642,1755441665144,1237.02897831,0.0001837,2]
[379925643,1755441671242,480.0,0.00018369,2]
[379925644,1755441672206,992.27,0.00018369,2]
[379925645,1755441673415,480.0,0.00018369,2]
[379925646,1755441673484,483.61214263,0.00018369,2]
[379925647,1755441678387,2580.89,0.00018369,2]
[379925648,1755441681241,3746.19887906,0.0001837,2]
[379925649,1755441681266,1253.80112094,0.0001837,2]
[379925651,1755441684752,480.0,0.00018369,2]
[379925652,1755441690195,1802.73699337,0.0001837,2]
[379925653,1755441691779,1609.1,0.00018369,2]
[379925654,1755441694394,480.0,0.00018369,2]
[379925655,1755441698027,480.0,0.00018369,2]
[379925656,1755441698194,3894.36188569,0.0001837,2]
[379925657,1755441698227,1105.63811431,0.0001837,2]
[379925658,1755441698315,791.37,0.0001836,3]
[379925659,1755441705265,520.0,0.00018369,2]
[379925660,1755441707544,480.0,0.00018369,2]
[379925661,1755441709192,395.68,0.0001836,3]
[379925662,1755441710398,480.0,0.00018369,2]
[379925663,1755441710985,403.68802895,0.00018369,2]
[379925664,1755441715079,5000.0,0.0001837,2]
[379925665,1755441718138,480.0,0.00018369,2]
[379925666,1755441720114,197.84,0.0001836,3]
[379925667,1755441720493,145.78385674,0.00018369,2]
[379925668,1755441720516,334.21614326,0.00018369,2]
[379925669,1755441721388,480.0,0.00018369,2]
[379925670,1755441723195,480.0,0.00018369,2]
[379925671,1755441723801,480.0,0.00018369,2]
[379925672,1755441730968,593.56,0.0001836,3]
[379925673,1755441731757,5000.0,0.0001837,2]
[379925674,1755441733102,480.0,0.00018369,2]
[379925675,1755441733130,2152.22385674,0.00018366,2]
[379925676,1755441733152,2049.60386114,0.00018366,2]
[379925677,1755441734006,452.58812186,0.00018366,2]
[379925678,1755441735746,480.0,0.00018369,2]
[379925679,1755441736104,480.0,0.00018369,2]
[379925680,1755441739815,480.0,0.00018369,2]
[379925681,1755441741551,256.0,0.00018359,2]
[379925682,1755441745157,480.0,0.00018369,2]
[379925683,1755441745203,480.0,0.00018369,2]
[379925684,1755441748648,4841.808017,0.0001837,2]
[379925685,1755441748674,158.191983,0.0001837,2]
[379925686,1755441758572,821.77,0.00018369,2]
[379925687,1755441760934,460.0,0.00018369,2]
[379925688,1755441761175,480.0,0.00018369,2]
[379925689,1755441765911,5000.0,0.0001837,2]
[379925690,1755441771508,480.0,0.00018369,2]
[379925691,1755441771542,766.51,0.00018369,2]
[379925692,1755441774133,480.0,0.00018369,2]
[379925693,1755441781136,1353.528017,0.0001837,2]
[379925694,1755441781161,3646.471983,0.0001837,2]
[379925695,1755441783503,563.51659871,0.00018369,2]
[379925696,1755441785949,483.39259573,0.00018369,2]
[379925698,1755441789961,514.77,0.00018369,2]
[379925699,1755441790265,480.0,0.00018369,2]
[379925700,1755441791263,480.0,0.00018369,2]
[379925701,1755441794978,480.0,0.00018369,2]
[379925702,1755441795643,480.0,0.00018369,2]
[379925703,1755441798472,2871.84882256,0.0001837,2]
[379925704,1755441798514,2128.15117744,0.0001837,2]
[379925705,1755441800816,480.0,0.00018369,2]
[379925706,1755441803030,480.0,0.00018369,2]
[379925707,1755441803971,4167.95894196,0.00018366,2]
[379925708,1755441806551,1822.21,0.00018369,2]
[379925709,1755441812772,608.4,0.00018369,2]
[379925710,1755441813562,313.2798806,0.00018369,2]
[379925711,1755441813589,166.7201194,0.00018369,2]
[379925712,1755441814846,480.0,0.00018369,2]
[379925713,1755441815161,5000.0,0.0001837,2]
[379925715,1755441816576,938.1,0.00018369,2]
[379925716,1755441816913,1658.72604576,0.00018366,2]
[379925717,1755441821379,-160.0,0.0001837,2]
[379925718,1755441821406,-276276.66726308,0.0001837,2]
[379925719,1755441825762,527.36,0.00018369,2]
[379925720,1755441827996,480.0,0.00018369,2]
[379925721,1755441829802,480.0,0.00018369,2]
[379925722,1755441833000,5000.0,0.00018371,2]
[379925723,1755441836588,1388.33,0.00018369,2]
[379925724,1755441836816,912.72,0.00018369,2]
[379925728,1755441841685,480.0,0.00018369,2]
[379925729,1755441843415,480.0,0.00018369,2]
[379925730,1755441843560,252.291271,0.00017912,2]
[379925731,1755441844669,196.48633794,0.00017914,2]
[379925732,1755441845583,480.0,0.00018369,2]
[379925741,1755441850030,5000.0,0.00018371,2]
[379925742,1755441852594,1000.0,0.00017468,2]
[379925743,1755441854693,294.99923752,0.00018366,2]
[379925744,1755441861043,480.0,0.00018369,2]
[379925746,1755441863332,480.0,0.00018369,2]
[379925747,1755441867627,5000.0,0.00018371,2]
[379925748,1755441869664,500.0,0.00018369,2]
[379925749,1755441869701,500.0,0.00018369,2]
[379925750,1755441869739,500.0,0.00018369,2]
[379925751,1755441869772,500.0,0.00018369,2]
[379925752,1755441869813,414.97915356,0.00018369,2]
[379925753,1755441869844,500.0,0.00018369,2]
[379925754,1755441869972,232.72804337,0.00018369,2]
[379925756,1755441875482,480.0,0.00018369,2]
[379925757,1755441879559,1104.44,0.00018369,2]
[379925758,1755441883772,235.30961422,0.00018369,2]
[379925759,1755441885774,5000.0,0.00018371,2]
[379925760,1755441890481,480.0,0.00018369,2]
[379925761,1755441891995,480.0,0.00018369,2]
[379925762,1755441894759,6325.01,0.00018369,2]
[379925763,1755441899437,478.52049025,0.00018369,2]
[379925764,1755441901358,5000.0,0.00018371,2]
[379925765,1755441901410,480.0,0.00018369,2]
[379925766,1755441901621,480.0,0.00018369,2]
[379925767,1755441901857,158.98,0.0002,60]
[379925768,1755441907961,306434.66294826,0.0001827,2]
[379925770,1755441909031,480.0,0.00018369,2]
[379925771,1755441911080,472.28452597,0.00018369,2]
[379925772,1755441914683,797.14,0.00018369,2]
[379925773,1755441918106,5000.0,0.00018371,2]
[379925774,1755441921494,480.0,0.00018369,2]
[379925776,1755441925409,480.0,0.00018369,2]
[379925777,1755441925694,480.0,0.00018369,2]
[379925778,1755441928932,480.0,0.00018369,2]
[379925779,1755441930445,480.0,0.00018369,2]
[379925780,1755441935251,5000.0,0.00018371,2]
[379925781,1755441937133,526.6,0.00018369,2]
[379925782,1755441941656,549.23,0.00018369,2]
[379925783,1755441946297,480.0,0.00018369,2]
[379925784,1755441948551,480.0,0.00018369,2]
[379925785,1755441949077,480.0,0.00018369,2]
[379925786,1755441950093,480.0,0.00018369,2]
[379925787,1755441951808,563.11,0.00018369,2]
[379925788,1755441952773,3398.07,0.00018369,2]
[379925789,1755441953107,5000.0,0.00018371,2]
[379925791,1755441960846,460.0,0.00018369,2]
[379925792,1755441960879,480.0,0.00018369,2]
[379925793,1755441961563,480.0,0.00018369,2]
[379925794,1755441962951,480.0,0.00018369,2]
[379925795,1755441965584,480.0,0.00018369,2]
[379925796,1755441965807,1898.4,0.00018369,2]
[379925797,1755441969452,5000.0,0.00018371,2]
[379925798,1755441969714,480.0,0.00018369,2]
[379925799,1755441975854,250.0,0.00017218,2]
[379925801,1755441979030,725.31,0.00018369,2]
[379925802,1755441979278,480.0,0.00018369,2]
[379925805,1755441985126,480.0,0.00018369,2]
[379925806,1755441986854,1000.0,0.00018371,2]
[379925807,1755441987314,5000.0,0.00018371,2]
[379925808,1755441989154,480.0,0.00018369,2]
[379925810,1755441990520,480.0,0.00018369,2]
[379925811,1755441994137,-446.15369234,0.00018433,2]
[379925812,1755441995626,500.0,0.00018369,2]
[379925813,1755441995886,500.0,0.00018369,2]
[379925814,1755441996149,500.0,0.00018369,2]
[379925815,1755441996422,500.0,0.00018369,2]
[379925816,1755441996762,500.0,0.00018369,2]
[379925817,1755441997063,500.0,0.00018369,2]
[379925818,1755441997332,500.0,0.00018369,2]
[379925819,1755441997614,500.0,0.00018369,2]
[379925820,1755441997968,500.0,0.00018369,2]
[379925821,1755441998225,500.0,0.00018369,2]
[379925822,1755441998471,500.0,0.00018369,2]
[379925823,1755441998714,500.0,0.00018369,2]
[379925824,1755441998976,500.0,0.00018369,2]
[379925825,1755442000151,1000.0,0.00018371,2]
[379925826,1755442000222,515.81,0.00018369,2]
[379925827,1755442001765,1000.0,0.00018371,2]
[379925828,1755442003221,480.0,0.00018369,2]
[379925829,1755442003272,1000.0,0.00018371,2]
[379925830,1755442004757,574.41581703,0.00018371,2]
[379925831,1755442004950,5000.0,0.00018371,2]
[379925832,1755442009759,591.29,0.00018369,2]
[379925834,1755442011634,480.0,0.00018369,2]
[379925835,1755442013662,480.0,0.00018369,2]
[379925837,1755442021674,5000.0,0.00018371,2]
[379925839,1755442024810,480.0,0.00018369,2]
[379925840,1755442025002,1163.69,0.00018369,2]
[379925841,1755442026908,236.89687105,0.00018354,2]
[379925842,1755442026949,481.65842489,0.00018369,2]
[379925843,1755442027529,480.0,0.00018369,2]
[379925844,1755442030611,480.0,0.00018369,2]
[379925845,1755442031094,480.0,0.00018369,2]
[379925846,1755442034960,480.0,0.00018369,2]
[379925847,1755442037208,908.19,0.00018369,2]
[379925848,1755442037616,928.64,0.00018369,2]
[379925850,1755442039463,480.0,0.00018369,2]
[379925851,1755442039606,5000.0,0.00018371,2]
[379925854,1755442057054,480.0,0.00018369,2]
[379925855,1755442057533,5000.0,0.00018371,2]
[379925857,1755442059024,480.0,0.00018369,2]
[379925858,1755442059110,480.0,0.00018369,2]
[379925859,1755442059814,480.0,0.00018369,2]
[379925861,1755442061022,189.51749684,0.00018354,2]
[379925862,1755442061150,480.0,0.00018369,2]
[379925867,1755442067236,480.0,0.00018369,2]
[379925868,1755442068226,1949.06,0.00018369,2]
[379925869,1755442068749,480.0,0.00018369,2]
[379925871,1755442069462,380.0,0.00018369,2]
[379925872,1755442071137,4730.20131211,0.0001827,2]
[379925873,1755442071789,709.65,0.00018369,2]
[379925874,1755442074523,5000.0,0.00018371,2]
[379925875,1755442075446,480.0,0.00018369,2]
[379925876,1755442077301,471.57881222,0.00018369,2]
[379925878,1755442079220,151.15445482,0.00018354,2]
[379925880,1755442088889,480.0,0.00018369,2]
[379925882,1755442091431,5000.0,0.00018371,2]
[379925883,1755442091988,659.52,0.00018369,2]
[379925884,1755442092021,2225.78,0.00018369,2]
[379925885,1755442092344,480.0,0.00018369,2]
[379925886,1755442094706,480.0,0.00018369,2]
[379925888,1755442095502,480.0,0.00018369,2]
[379925891,1755442097257,480.0,0.00018369,2]
[379925894,1755442100001,480.0,0.00018369,2]
[379925895,1755442100973,460.0,0.00018369,2]
[379925896,1755442101115,480.0,0.00018369,2]
[379925897,1755442102546,480.0,0.00018369,2]
[379925898,1755442102996,1000.32,0.00018369,2]
[379925900,1755442108081,5256.4390916,0.00017463,2]
[379925901,1755442108141,5000.0,0.00018371,2]
[379925902,1755442115681,480.0,0.00018369,2]
[379925903,1755442117075,480.0,0.00018369,2]
[379925904,1755442122630,1436.82,0.00018369,2]
[379925905,1755442123312,480.0,0.00018369,2]
[379925906,1755442124766,5000.0,0.00018371,2]
[379925908,1755442130916,480.0,0.00018369,2]
[379925909,1755442136008,6061.46,0.00018369,2]
[379925910,1755442137183,480.0,0.00018369,2]
[379925911,1755442139310,480.0,0.00018369,2]
[379925912,1755442140686,2498.54,0.00018371,2]
[379925913,1755442140709,2501.46,0.00018371,2]
[379925914,1755442147489,3655.27418993,0.00018366,2]
[379925916,1755442150905,480.0,0.00018369,2]
[379925917,1755442151627,480.0,0.00018369,2]
[379925918,1755442155620,1175.2,0.00018369,2]
[379925919,1755442156146,763.93,0.00018369,2]
[379925920,1755442157294,480.0,0.00018369,2]
[379925921,1755442157945,464.13581007,0.00018371,2]
[379925922,1755442157970,4535.86418993,0.00018371,2]
[379925923,1755442160703,480.0,0.00018369,2]
[379925924,1755442162706,526.35,0.00018369,2]
[379925925,1755442163728,480.0,0.00018369,2]
[379925927,1755442170624,480.0,0.00018369,2]
[379925928,1755442170654,480.0,0.00018369,2]
[379925929,1755442171348,480.0,0.00018369,2]
[379925930,1755442174272,480.0,0.00018369,2]
[379925932,1755442174644,2057.78581007,0.00018371,2]
[379925933,1755442174670,2942.21418993,0.00018371,2]
[379925934,1755442178274,480.0,0.00018369,2]
[379925936,1755442180746,715.83,0.00018369,2]
[379925937,1755442184494,480.0,0.00018369,2]
[379925938,1755442189296,695.09,0.00018369,2]
[379925939,1755442189964,480.0,0.00018369,2]
[379925940,1755442191646,4206.86581007,0.00018371,2]
[379925941,1755442191672,793.13418993,0.00018371,2]
[379925942,1755442192522,480.0,0.00018369,2]
[379925943,1755442193687,480.0,0.00018369,2]
[379925944,1755442196409,203.3112737,0.00018333,2]
[379925946,1755442197749,494.32,0.00018369,2]
[379925947,1755442198111,480.0,0.00018369,2]
[379925948,1755442199974,480.0,0.00018369,2]
[379925949,1755442200358,480.0,0.00018369,2]
[379925951,1755442203143,480.0,0.00018369,2]
[379925952,1755442204395,480.0,0.00018369,2]
[379925953,1755442206872,480.0,0.00018369,2]
[379925955,1755442208396,4669.23453637,0.00018371,2]
[379925956,1755442208419,330.76546363,0.00018371,2]
[379925957,1755442213421,480.0,0.00018369,2]